[Event "8th Brazilian Open SESC Caioba 2024"]
[Site "Caioba"]
[Date "2024.06.24"]
[Round "2.1"]
[White "Silva, Caio Henrique Angeli"]
[Black "Mekhitarian, Krikor Sevag"]
[Result "0-1"]
[ECO "E08"]
[WhiteElo "2094"]
[BlackElo "2554"]
[Annotator "TA"]
[PlyCount "150"]
[EventDate "2024.06.15"]
[EventCountry "BRA"]
[SourceTitle "playchess.com"]
[Source "ChessBase"]
[SourceQuality "1"]
[TimeControl "5400+30"]

{[%evp 33,150,16,13,13,46,19,15,-1,-2,-12,-15,0,-8,-57,-15,-81,0,-31,-25,-22,-33,-36,-21,-29,0,0,0,0,0,0,0,-19,0,0,0,0,0,-10,0,-13,0,-13,-8,-28,-14,-18,0,-32,-22,-131,-5,-5,0,-156,-151,-158,-23,-47,-54,-47,-41,-52,-50,-50,-50,-75,-71,-71,-73,-70,-65,-64,-64,-64,-42,-34,-36,-46,-8,-64,-64,-64,-64,-64,-64,-64,-62,-706,-677,-641,-618,-29945,-29945,-12836,-10012,-5101,-5073,-29963,-29953,-29964,-29966,-29966,-29967,-29968,-29968,-29969,-29970,-29971,-29972,-29971,-29973,-29973,-29974,-29974,-29975,-29975,-29976,-29977,-29973]} 1. d4 {[%emt 0:00:20]} Nf6 {[%emt 0:00:13]} 2. Nf3 {[%emt 0:00:19]} d5 {[%emt 0:00:53]} 3. c4 {[%emt 0:00:28]} e6 {[%emt 0:00:06]} 4. g3 {[%emt 0:00:34]} Bb4+ {[%emt 0:00:55]} 5. Bd2 {[%emt 0:00:16]} Be7 {[%emt 0:00:05]} 6. Qc2 {[%emt 0:01:04]} O-O {[%emt 0:02:15]} 7. Bg2 {[%emt 0:00:16]} Nbd7 {[%emt 0:00:16]} 8. O-O {[%emt 0:01:50]} Ne4 {[%emt 0:00:05]} 9. Bf4 {[%emt 0:03:48]} c6 {[%emt 0:01:04]} 10. Nc3 {[%emt 0:06:19]} g5 {[%emt 0:00:47]} 11. Bc1 {[%emt 0:02:34]} f5 {[%emt 0:00:56]} 12. cxd5 {[%emt 0:05:55]} exd5 {[%emt 0:00:43]} 13. Ne1 {[%emt 0:08:50]} Bf6 {[%emt 0:04:39]} 14. e3 {[%emt 0:01:33]} a5 {[%emt 0:20:21]} 15. b3 {[%emt 0:05:00]} Re8 {[%emt 0:04:24]} 16. Bb2 {[%emt 0:02:43]} Nf8 {[%emt 0:01:51]} 17. Nd3 {[%emt 0:02:32]} Ng6 {[%emt 0:00:59]} 18. Qd1 {[%emt 0:55:09]} Nd6 {[%emt 0:22:59]} 19. Rc1 {[%emt 0:00:00]} f4 {[%emt 0:01:39]} 20. exf4 {[%emt 0:00:00]} gxf4 {[%emt 0:01:12]} 21. Na4 {[%emt 0:00:00]} Bf5 {[%emt 0:11:51]} 22. Nac5 {[%emt 0:00:00]} Qe7 {[%emt 0:06:21]} 23. Qd2 {[%emt 0:00:00]} (23. Qf3 $11) 23... Qg7 {[%emt 0:05:28]} 24. Ne5 $1 {[%emt 0:00:00]} (24. Nxf4 Bg5 25. Rc3 Nxf4 26. gxf4 Bh4 $16) 24... fxg3 {[%emt 0:01:44]} ({Black should play} 24... Ne4 $1 $17 {[%cal Re4d2]} 25. Nxe4 dxe4 (25... Bxe5 26. dxe5 dxe4 27. Qc2 $16)) 25. hxg3 {[%emt 0:00:00]} (25. fxg3 $5 Nxe5 26. dxe5 Bxe5 27. Nxb7 $11) 25... Nxe5 {[%emt 0:00:31]} 26. dxe5 {[%emt 0:00:00]} Bxe5 {[%emt 0:00:05]} 27. Bxe5 {[%emt 0:00:00]} Rxe5 {[%emt 0:00:24]} 28. Rfe1 {[%emt 0:00:00]} Ne4 {[%emt 0:06:44]} 29. Nxe4 {[%emt 0:00:00]} Bxe4 {[%emt 0:00:18]} 30. Bxe4 {[%emt 0:00:04]} dxe4 {[%emt 0:00:04]} 31. Rc4 {[%emt 0:01:14]} Rae8 {[%emt 0:00:26]} 32. Qe3 {[%emt 0:00:49]} Qg4 {[%emt 0:02:12]} 33. Rc5 {[%emt 0:00:36]} Qf5 {[%emt 0:01:38]} 34. Rxe5 {[%emt 0:01:18]} Rxe5 {[%emt 0:00:30]} 35. Qd4 {[%emt 0:00:24]} Re7 {[%emt 0:01:02]} 36. Qd8+ {[%emt 0:00:17]} Kf7 {[%emt 0:00:01]} 37. Qd4 {[%emt 0:00:44]} h5 {[%emt 0:01:07]} 38. Qc4+ {[%emt 0:01:26]} Qd5 {[%emt 0:00:21]} 39. Qc1 {[%emt 0:00:51]} Qf5 {[%emt 0:00:28]} 40. Qh6 {[%emt 0:00:26]} Re6 {[%emt 0:00:39]} 41. Qh8 {[%emt 0:01:23]} (41. Qe3 $11) 41... Re8 {[%emt 0:01:43]} (41... Rf6 $1 $17 42. Re2 e3) 42. Qh6 $11 {[%emt 0:00:09]} Re6 $2 {[%emt 0:00:16]} (42... Rd8 $11) 43. Qh8 $17 {[%emt 0:00:04]} Rf6 $1 {[%emt 0:00:05]} 44. Re2 {[%emt 0:01:50]} Rd6 {[%emt 0:00:15]} ({Better is} 44... e3 $1 $17 {[%cal Re3f2]} 45. f4 Re6) 45. Qc3 {[%emt 0:00:58]} (45. Re1 {with more complications.} Rd3 46. Rc1 Rd2 47. Rf1) 45... h4 {[%emt 0:01:14]} 46. Qc4+ {[%emt 0:00:20]} Re6 {[%emt 0:00:02]} 47. gxh4 {[%emt 0:00:44]} Qg4+ {[%emt 0:00:10]} 48. Kf1 {[%emt 0:00:06]} Qxh4 {[%emt 0:00:13]} 49. Re3 {[%emt 0:00:47]} Qh1+ {[%emt 0:00:19]} 50. Ke2 {[%emt 0:00:01] [#]} Qh5+ $1 {[%emt 0:00:06]} 51. Kd2 {[%emt 0:00:32]} Qd5+ {[%emt 0:01:34]} (51... Qf5 {feels hotter.} 52. Re2 Ke7 53. Kc2 Kd6) 52. Qxd5 {[%emt 0:00:23]} cxd5 {[%emt 0:00:02]} 53. f3 {[%emt 0:00:23]} Kf6 {[%emt 0:02:09]} 54. fxe4 {[%emt 0:00:04]} Rxe4 {[%emt 0:00:32]} 55. Rh3 {[%emt 0:00:32]} Ke5 {[%emt 0:00:29]} 56. Kd3 {[%emt 0:00:28]} ({White should try} 56. Rh7 $11) 56... Kd6 {[%emt 0:00:06]} 57. Rh7 {[%emt 0:00:54]} Re7 {[%emt 0:00:05]} 58. Rh4 {[%emt 0:01:11]} Kc5 {[%emt 0:01:10]} 59. a3 {[%emt 0:00:39]} Rg7 {[%emt 0:00:05]} 60. b4+ $2 {[%emt 0:00:39][%mdl 8192]} (60. Kc2 $15) 60... axb4 $19 {[%emt 0:00:01]} 61. axb4+ {[%emt 0:00:00]} Kb5 {[%emt 0:00:01]} 62. Rd4 {[%emt 0:01:12] [#]} Rc7 $1 {[%emt 0:00:16]} 63. Rg4 {[%emt 0:00:30]} Ka4 {[%emt 0:01:53]} 64. Rf4 {[%emt 0:00:31]} b5 {[%emt 0:00:06]} 65. Rd4 {[%emt 0:00:20]} Rc8 {[%emt 0:00:54]} 66. Kd2 {[%emt 0:00:19]} Rc4 {[%emt 0:00:25]} 67. Rxd5 {[%emt 0:00:15]} Kxb4 {[%emt 0:00:04]} 68. Re5 {[%emt 0:01:04]} Ka4 {[%emt 0:00:21]} 69. Re1 {[%emt 0:00:24]} b4 {[%emt 0:00:06]} 70. Rb1 {[%emt 0:00:30]} Ka3 {[%emt 0:00:13]} 71. Ra1+ {[%emt 0:00:28]} Kb2 {[%emt 0:00:02]} 72. Ra8 {[%emt 0:00:38]} Rd4+ {[%emt 0:00:03]} 73. Ke3 {[%emt 0:00:12]} Rd7 {[%emt 0:00:05]} 74. Rc8 {[%emt 0:00:34]} b3 {[%emt 0:00:04]} 75. Rc6 {[%emt 0:00:14]} Kb1 {[%emt 0:04:35]} 0-1

[Event "8th Brazilian Open SESC Caioba 2024"]
[Site "Caioba"]
[Date "2024.06.24"]
[Round "2.2"]
[White "Hernandez Guerrero, Gilberto"]
[Black "Almeida Junior, Alvaro Alves de"]
[Result "1-0"]
[ECO "B86"]
[WhiteElo "2506"]
[BlackElo "2129"]
[Annotator "TA"]
[PlyCount "99"]
[EventDate "2024.06.15"]
[EventCountry "BRA"]
[SourceTitle "playchess.com"]
[Source "ChessBase"]
[SourceQuality "1"]
[TimeControl "5400+30"]

{[%evp 16,99,28,17,39,28,36,27,29,31,41,20,41,26,22,16,16,0,0,0,0,-14,0,0,5,1,1,0,0,0,0,0,8,0,18,18,12,0,14,8,11,10,31,23,32,24,45,32,48,31,57,58,113,117,113,111,111,114,110,110,114,108,246,214,235,210,235,201,453,407,851,857,830,684,1188,1066,2248,1616,1839,1491,2168,2099,2743,2743,29988,29989]} 1. e4 {[%emt 0:00:07]} c5 {[%emt 0:03:00]} 2. Nf3 {[%emt 0:01:27]} d6 {[%emt 0:00:30]} 3. d4 {[%emt 0:01:53]} cxd4 {[%emt 0:00:08]} 4. Nxd4 {[%emt 0:00:05]} Nf6 {[%emt 0:00:07]} 5. Nc3 {[%emt 0:00:05]} a6 {[%emt 0:00:22]} 6. Bc4 {[%emt 0:00:33]} e6 {[%emt 0:01:47]} 7. Bb3 {[%emt 0:00:05]} Be7 {[%emt 0:02:34]} 8. f4 {[%emt 0:05:03]} Qc7 {[%emt 0:10:47]} 9. f5 {[%emt 0:05:18]} exf5 {[%emt 0:09:51]} 10. Nxf5 {[%emt 0:12:33]} Bxf5 {[%emt 0:07:53]} 11. exf5 {[%emt 0:00:07]} O-O {[%emt 0:07:39] White has an edge.} 12. O-O {[%emt 0:02:51]} Nbd7 {[%emt 0:02:57][%cal Bb8d7,Bd7c5,Bc5e4,Be4f6][%mdl 32]} 13. Kh1 {[%emt 0:00:42]} b5 {[%emt 0:04:21]} 14. a3 {[%emt 0:03:34]} Rac8 {[%emt 0:01:29]} 15. Bg5 {[%emt 0:02:55]} Nc5 {[%emt 0:06:32]} 16. Ba2 {[%emt 0:11:54]} Nce4 {[%emt 0:11:00]} 17. Bxf6 {[%emt 0:02:03]} Nxf6 {[%emt 0:00:18]} 18. Qd3 {[%emt 0:02:23]} Rfe8 {[%emt 0:06:20]} (18... d5 {simplifies} 19. Nxd5 Nxd5 20. Bxd5 Qxc2 21. Qxc2 Rxc2 22. b4 Bg5) 19. Rae1 {[%emt 0:01:14]} Qc5 {[%emt 0:06:18]} 20. Bb3 {[%emt 0:05:22]} Bf8 {[%emt 0:04:20]} 21. Ne4 {[%emt 0:04:32]} Nxe4 {[%emt 0:00:06]} 22. Rxe4 {[%emt 0:00:06]} Rxe4 {[%emt 0:01:59]} 23. Qxe4 {[%emt 0:00:07][%cal Ob3f7]} Rc7 {[%emt 0:03:33] Black is weak on the light squares} 24. g3 {[%emt 0:12:22]} Qe5 {[%emt 0:02:30]} 25. Qxe5 {[%emt 0:04:04]} dxe5 $11 {[%emt 0:00:06][%mdl 4096] Endgame. KRB-KRB} 26. Rd1 {[%emt 0:01:48]} Be7 {[%emt 0:00:19]} 27. Kg2 {[%emt 0:00:33]} Kf8 {[%emt 0:00:47]} 28. Kf3 {[%emt 0:00:17]} Ke8 {[%emt 0:02:13]} 29. Ke4 {[%emt 0:01:32]} f6 {[%emt 0:03:18]} 30. g4 {[%emt 0:02:57]} Rd7 {[%emt 0:00:09]} 31. Bd5 {[%emt 0:00:30] Bc6 is the strong threat.} Kd8 {[%emt 0:00:08]} 32. Rd3 {[%emt 0:02:20]} Bc5 {[%emt 0:00:30]} 33. b4 {[%emt 0:00:32]} Bb6 {[%emt 0:01:09]} (33... Bg1 $14) 34. Bb7 $1 $16 {[%emt 0:01:47]} Rxd3 {[%emt 0:01:06]} 35. Kxd3 {[%emt 0:00:06] KB-KB} a5 {[%emt 0:01:20]} 36. Bc6 {[%emt 0:00:54]} axb4 {[%emt 0:00:11]} 37. axb4 {[%emt 0:00:06]} (37. Bxb5 bxa3 38. Bc4 Kc7 $19) 37... Bf2 {[%emt 0:00:49]} 38. Bxb5 {[%emt 0:01:29]} Be1 {[%emt 0:00:08] This costs Black the game.} (38... Kc7 $16 39. c3 g6) 39. Kc4 $1 $18 {[%emt 0:00:53]} Kc7 {[%emt 0:00:06]} 40. Kc5 {[%emt 0:02:50]} Bf2+ {[%emt 0:00:19]} 41. Kd5 {[%emt 0:00:49]} Be1 $2 {[%emt 0:00:07] [#]} (41... e4 42. Ke6 (42. Kxe4 Be1 $16) 42... Be1) 42. Ke6 $1 {[%emt 0:00:17]} Bxb4 {[%emt 0:01:40] [#]} (42... e4 $142 43. Kf7 Bxb4 44. Kxg7 Kb6) 43. Kf7 $1 {[%emt 0:00:09]} Be1 {[%emt 0:00:37]} 44. Kxg7 {[%emt 0:00:28]} Bh4 {[%emt 0:00:03]} 45. Kxh7 {[%emt 0:00:15]} e4 {[%emt 0:00:58]} 46. Kg6 {[%emt 0:01:07]} Kd6 {[%emt 0:00:07]} 47. Kh5 {[%emt 0:00:17]} Bf2 {[%emt 0:00:28]} 48. g5 {[%emt 0:00:28][%cal Bg4g5,Bg5g6][%mdl 32]} Ke7 {[%emt 0:00:59]} 49. g6 {[%emt 0:04:38] g7 would kill now.} Kf8 {[%emt 0:00:31]} 50. Kh6 {[%emt 0:00:09] Weighted Error Value: White=0.05 (flawless) /Black=0.43.  Mistake:       	---       	Black=4      Inaccurate:     	---       	Black=1      OK:         	White=7     	Black=9      Best:        	White=1     	---        Strong:       	White=4     	---} 1-0

[Event "8th Brazilian Open SESC Caioba 2024"]
[Site "Caioba"]
[Date "2024.06.24"]
[Round "2.3"]
[White "Cueto, Jonny"]
[Black "Barbosa, Evandro Amorim"]
[Result "1-0"]
[ECO "A45"]
[WhiteElo "2082"]
[BlackElo "2491"]
[Annotator "TA"]
[PlyCount "119"]
[EventDate "2024.06.15"]
[EventCountry "BRA"]
[SourceTitle "playchess.com"]
[Source "ChessBase"]
[SourceQuality "1"]
[TimeControl "5400+30"]

{[%evp 9,119,13,9,0,53,64,54,40,73,74,81,66,61,19,18,0,0,0,64,39,40,45,47,54,89,88,86,75,99,96,94,93,110,110,117,112,119,110,190,188,201,201,308,322,579,576,573,587,567,567,585,589,845,705,728,678,957,630,673,652,803,805,841,737,1066,1013,1175,1137,1195,1172,1162,1141,1202,1067,1483,1414,1904,1143,1049,756,1000,657,1022,720,697,496,496,431,417,456,1060,314,322,299,332,348,340,205,214,0,937,1061,1083,964,1437,287,294,250,216,105,6697,6183]} 1. d4 {[%emt 0:00:56]} Nf6 {[%emt 0:00:14]} 2. Bg5 {[%emt 0:00:31]} Ne4 {[%emt 0:00:49]} 3. Bf4 {[%emt 0:00:07]} c5 {[%emt 0:00:17]} 4. f3 {[%emt 0:00:10]} Nf6 {[%emt 0:00:24][%cal Be4f6,Bf6h5,Bh5f4,Bf4g6,Bg6h4,Bh4f3][%mdl 32]} 5. d5 {[%emt 0:00:07]} Nh5 {[%emt 0:00:36]} 6. Be3 {[%emt 0:00:19]} e5 {[%emt 0:00:27]} (6... e6 $11) 7. g4 $14 {[%emt 0:04:11] Active counter play!} Nf4 {[%emt 0:00:53]} 8. Bf2 {[%emt 0:00:09] White is slightly better.} h5 {[%emt 0:09:13]} 9. e3 {[%emt 0:01:38]} Ng6 {[%emt 0:00:14]} 10. gxh5 {[%emt 0:02:06]} Rxh5 {[%emt 0:00:50]} 11. f4 {[%emt 0:00:13] Inhibits d6.} Rh8 {[%emt 0:03:13]} 12. f5 {[%emt 0:02:24]} Nh4 {[%emt 0:01:36]} 13. e4 {[%emt 0:00:15]} Qg5 {[%emt 0:10:53]} (13... d6 $11) 14. Nc3 {[%emt 0:05:15]} d6 {[%emt 0:03:46]} 15. Nf3 {[%emt 0:01:42]} Nxf3+ {[%emt 0:01:29]} 16. Qxf3 {[%emt 0:00:02]} a6 {[%emt 0:00:16]} 17. h4 {[%emt 0:03:08]} Qd8 {[%emt 0:00:25]} 18. O-O-O {[%emt 0:03:39]} Nd7 {[%emt 0:01:38]} 19. Be2 {[%emt 0:01:45]} b5 {[%emt 0:00:24][%cal Bb7b5,Bb5b4][%mdl 32]} 20. Rdg1 {[%emt 0:00:02]} Qa5 {[%emt 0:06:44]} 21. Kb1 {[%emt 0:00:16]} Nf6 {[%emt 0:00:41]} 22. h5 {[%emt 0:03:42]} Bd7 {[%emt 0:00:38]} 23. Bh4 {[%emt 0:02:09]} Rc8 {[%emt 0:08:58]} (23... O-O-O $16 {was called for.}) 24. Bg5 $18 {[%emt 0:04:57][%cal Oh5h6]} b4 {[%emt 0:10:20]} 25. Nd1 {[%emt 0:00:09][%cal Oh5h6,Bc3d1,Bd1e3,Be3g4][%mdl 32]} Bb5 {[%emt 0:00:10]} (25... Be7 {is a better defense.} 26. Ne3 (26. h6 gxh6 27. Bxh6 Kd8 $16) 26... Bb5 27. Bxf6 Bxe2 28. Qxe2 Bxf6) 26. h6 {[%emt 0:00:29]} Kd7 $2 {[%emt 0:16:33]} (26... Qd8 27. c4 bxc3 28. Nxc3 Rxh6 29. Nxb5 (29. Bxb5+ axb5 30. Rxh6 gxh6 $18) 29... Rxh1 30. Rxh1 axb5 31. Bxb5+ Ke7) 27. Bxf6 {[%emt 0:02:31]} gxf6 {[%emt 0:00:05]} 28. h7 {[%emt 0:00:12]} Be7 {[%emt 0:01:30]} 29. Rg7 {[%emt 0:06:31]} Rcf8 {[%emt 0:06:10]} 30. Ne3 {[%emt 0:01:39]} Qc7 {[%emt 0:01:07]} 31. Bc4 {[%emt 0:08:38] Black is weak on the light squares} Qb8 {[%emt 0:01:10]} 32. Qh5 {[%emt 0:00:51]} Qe8 {[%emt 0:00:08]} 33. Qe2 {[%emt 0:00:27]} Kc7 {[%emt 0:00:22]} 34. Rh3 {[%emt 0:03:05]} Qb8 {[%emt 0:01:57]} 35. Ng4 {[%emt 0:01:37]} Kb6 {[%emt 0:02:44]} 36. a3 {[%emt 0:05:19]} Qc7 {[%emt 0:01:40]} 37. Nh6 {[%emt 0:02:50]} Bd8 {[%emt 0:01:07]} 38. axb4 {[%emt 0:03:01]} cxb4 {[%emt 0:00:11]} 39. Bxb5 {[%emt 0:00:10]} axb5 {[%emt 0:00:07]} 40. Rb3 {[%emt 0:00:41]} Be7 {[%emt 0:05:42]} 41. Qe3+ {[%emt 0:06:29]} (41. Rxf7 Rxf7 42. Rxb4 (42. Nxf7 Rxh7 43. Rxb4 Qc5 $15) 42... Qc5 43. Nxf7 Rxh7 $11) 41... Ka6 {[%emt 0:01:41]} 42. Rxb4 {[%emt 0:00:14]} Rc8 {[%emt 0:01:37]} 43. Qa3+ {[%emt 0:05:53]} Qa5 {[%emt 0:01:22]} 44. Rxf7 {[%emt 0:00:33]} Bd8 {[%emt 0:00:50][%cal Be7d8,Bd8b6,Bb6d4][%mdl 32]} 45. Rd7 {[%emt 0:00:57]} Bb6 {[%emt 0:00:36]} 46. c4 {[%emt 0:04:17][%csl Gb4][%cal Rc4b5]} Qxa3 {[%emt 0:00:41]} 47. cxb5+ {[%emt 0:02:57]} Ka5 {[%emt 0:00:02]} 48. bxa3 {[%emt 0:15:17][%cal Od7g7] Rg7! is the strong threat.} Rc3 {[%emt 0:00:19]} 49. Rb2 {[%emt 0:00:00] Hoping for Rg7.} (49. Rxd6 Rxh7 50. Rxf6 Rh3 $14) 49... Rh3 {[%emt 0:00:20]} (49... Rc7 $142 50. Rxc7 (50. Rxd6 Rcxh7 51. Ng4 Rh1+ 52. Ka2 R1h4 $18) 50... Bxc7) 50. Ng4 $2 {[%emt 0:00:00]} (50. Nf7 Ka4 51. Nxh8 Kxa3 52. Rc2 (52. Rxd6 Rh1+ 53. Kc2 Rh2+ 54. Kd3 Rxh7 $18)) 50... Bd4 {[%emt 0:01:44]} 51. Rh2 {[%emt 0:00:00]} Rb3+ {[%emt 0:00:13]} 52. Ka2 {[%emt 0:00:00]} Rxb5 {[%emt 0:00:32]} 53. Rc7 {[%emt 0:00:00]} (53. Rxd6 Rhb8 54. Rd7 (54. h8=R Rb2+ 55. Rxb2 Rxb2+ 56. Ka1 Rb6+ 57. Ka2 Rb2+ 58. Ka1 Rb3+ 59. Ka2 Rb2+ $11) (54. Nxf6 $2 Rb1) 54... Rb2+ 55. Rxb2 Rxb2+ 56. Ka1 Rb8+ 57. Ka2 Ka4 $11 (57... Rb2+ 58. Ka1 $11)) 53... Rhb8 {[%emt 0:00:16] [#]} 54. Rc4 $2 {[%emt 0:00:00]} (54. h8=R Rb2+ 55. Rxb2 Rxb2+ 56. Ka1 Rb5+ (56... Rb8+ 57. Ka2 $11) 57. Ka2 (57. Rc3 $2 Bxc3+ 58. Ka2 Rb2+ 59. Ka1 Rb8+ 60. Ka2 Rxh8 $19) 57... Rb2+ 58. Ka1 Rb5+ (58... Rb8+ 59. Ka2 $11) 59. Ka2 (59. Rc3 $2 Bxc3+ 60. Ka2 Rb2+ 61. Ka1 Rb8+ 62. Ka2 Rxh8 $19) 59... Rb2+ $11) (54. Ra7+ $1 $18 Bxa7 55. h8=Q (55. h8=R Bg1 $18) 55... Rb2+ 56. Rxb2 Rxh8 57. Rh2 (57. Nxf6 Bd4 $18)) 54... Rb1 $2 {[%emt 0:01:05][%mdl 8192] [#]} (54... Rb2+ $11 55. Rxb2 Rxb2+ 56. Ka1 Rb8+ 57. Ka2 (57. Rxd4 exd4 58. Ka2 d3 $17) 57... Rb2+ 58. Ka1 Rb8+ 59. Ka2 (59. Rxd4 exd4 60. Ka2 d3 $19) 59... Rb2+) 55. Rxd4 $1 {[%emt 0:00:00]} exd4 {[%emt 0:00:11]} 56. Nxf6 {[%emt 0:00:00] Threatens to win with Nd7.} (56. h8=B R1b3 57. Rd2 (57. Nxf6 Ka4 58. Ka1 d3 59. Ng4 Rxa3+ 60. Ra2 Rxh8 61. Nf2 d2 62. Kb1 Rb8+ 63. Rb2 Rab3 64. Kc2 Rxb2+ 65. Kd3 R8b3+ 66. Ke2 d1=R+ 67. Kxd1 Rxf2 68. Kc1 Rh3 69. Kd1 Rh1#) 57... Rg3 $14) (56. h8=N $2 d3 57. Ng6 (57. Nxf6 $2 Re1 $19) 57... Ka4 $19) 56... d3 {[%emt 0:00:21]} 57. Ng8 $2 {[%emt 0:00:00]} (57. h8=N $2 {too greedy.} Rc1 58. Nd7 Rc2+ 59. Rxc2 dxc2 60. Nxb8 c1=Q $19 (60... c1=R $2 61. Nf7 $18)) (57. h8=B Rg1 $11) (57. Ne8 d2 58. Rxd2 (58. h8=R $2 R8b2#) (58. h8=Q d1=Q $11)) 57... d2 {[%emt 0:00:23]} 58. Rxd2 {[%emt 0:00:00]} (58. h8=R $2 R8b2#) (58. h8=Q R1b2+ 59. Qxb2 Rxb2+ (59... d1=R 60. Qxb8 Rg1 61. Rb2) 60. Kxb2 d1=Q $19) 58... Rh1 {[%emt 0:00:05]} 59. Ne7 {[%emt 0:00:25]} (59. Nf6 $18) 59... Rbb1 $2 {[%emt 0:00:59][%mdl 8192] [#]} (59... Re8 $16 60. Nc6+ Kb6) 60. h8=Q $1 {[%emt 0:00:43] Weighted Error Value: White=0.80/Black=0.29 (precise) .  Loses game:     	---       	Black=2      Missed win:     	White=1     	---        Mistake:       	White=2     	Black=6      Inaccurate:     	White=2     	Black=3      OK:         	White=18    	Black=10     Best:        	White=2     	Black=3      Brilliant:      	White=2     	---} 1-0

[Event "8th Brazilian Open SESC Caioba 2024"]
[Site "Caioba"]
[Date "2024.06.24"]
[Round "2.4"]
[White "Delgado Ramirez, Neuris"]
[Black "Lage, Pedro Ferreira"]
[Result "1/2-1/2"]
[ECO "D10"]
[WhiteElo "2487"]
[BlackElo "2077"]
[Annotator "TA"]
[PlyCount "108"]
[EventDate "2024.06.15"]
[EventCountry "BRA"]
[SourceTitle "playchess.com"]
[Source "ChessBase"]
[SourceQuality "1"]
[TimeControl "5400+30"]

{[%evp 26,108,84,75,322,16,8,0,16,0,0,0,0,-28,-32,-99,-100,-91,-77,-133,-39,-182,-47,-252,-210,-232,-222,-230,-216,-229,-223,-343,-88,-164,-170,-156,-157,-162,-23,-23,-24,-8,0,0,0,0,0,5,46,46,56,56,56,56,56,54,54,46,39,39,39,8,8,0,8,8,8,8,45,45,45,45,45,45,45,45,45,45,45,45,45,43,102,102,102]} 1. d4 {[%emt 0:20:17]} d5 {[%emt 0:00:24]} 2. c4 {[%emt 0:01:39]} c6 {[%emt 0:00:20]} 3. Nc3 {[%emt 0:00:41]} Nf6 {[%emt 0:00:15]} 4. cxd5 {[%emt 0:00:27]} cxd5 {[%emt 0:00:18]} 5. f3 {[%emt 0:00:06]} Nc6 {[%emt 0:01:18]} 6. e4 {[%emt 0:00:21]} e6 {[%emt 0:02:22]} 7. e5 {[%emt 0:00:25]} Nd7 {[%emt 0:01:32]} 8. f4 {[%emt 0:00:07]} Be7 {[%emt 0:04:14]} 9. Nf3 {[%emt 0:00:37]} O-O {[%emt 0:00:56]} 10. Bd3 {[%emt 0:00:19]} Qb6 {[%emt 0:10:22]} 11. h4 {[%emt 0:00:58]} f5 {[%emt 0:04:25]} 12. Na4 {[%emt 0:02:13]} Qa5+ {[%emt 0:03:00]} 13. Bd2 {[%emt 0:00:20]} Nb4 {[%emt 0:04:00]} 14. Be2 {[%emt 0:00:08]} Nb6 $2 {[%emt 0:02:38]} (14... Qc7 $16 {was called for.}) 15. Nc3 $2 {[%emt 0:01:16]} ({White must play} 15. Nc5 $1 $18) 15... Nc4 $11 {[%emt 0:02:40]} 16. Bc1 {[%emt 0:02:13]} Bd7 {[%emt 0:02:19]} 17. Kf1 {[%emt 0:02:52]} (17. a3 {keeps more tension.} b5 18. b3 Na2 19. Rxa2 Qxc3+ 20. Kf2) 17... Rac8 {[%emt 0:01:35]} 18. Rh3 {[%emt 0:00:07]} b5 {[%emt 0:03:59]} 19. Nd2 {[%emt 0:07:58]} Nc6 {[%emt 0:05:40]} 20. Nxc4 {[%emt 0:02:44]} (20. Nb3 $15 Qb6 21. h5) 20... bxc4 $17 {[%emt 0:00:20]} 21. Be3 {[%emt 0:03:45]} Rb8 {[%emt 0:02:25]} 22. Rb1 {[%emt 0:00:21]} (22. Qd2 $142) 22... Rb7 {[%emt 0:03:28]} ({Black should play} 22... Bb4 $1 $17 23. Bf2 Bxc3 24. Rxc3 Rxb2 (24... Qxa2 $2 25. Ra3 $18) 25. Rxb2 Qxc3) 23. g4 {[%emt 0:00:16]} (23. Bf2 $1 $15) 23... Rfb8 {[%emt 0:02:03]} ({Black should try} 23... fxg4 $19 24. Bxg4 Nb4) 24. Bf2 $2 {[%emt 0:00:14]} (24. gxf5 $1 $15 Bb4 (24... exf5 25. Qc1 $17) (24... Rxb2 25. Rxb2 Rxb2 26. Bc1 $11) 25. Rc1 Bxc3 (25... exf5 26. Nxd5 Be6 27. Nxb4 $14) 26. bxc3) 24... Rxb2 {[%emt 0:03:37]} 25. Rxb2 {[%emt 0:00:44]} Rxb2 {[%emt 0:00:05]} 26. gxf5 {[%emt 0:00:39]} exf5 {[%emt 0:01:53]} 27. Qc1 {[%emt 0:02:12]} Ba3 {[%emt 0:17:45]} 28. Nxd5 {[%emt 0:21:17]} (28. Qe3 {might work better.}) 28... Rxe2 $2 {[%emt 0:04:07]} (28... Rxa2 $2 29. Nf6+ (29. Qxc4 Ra1+ 30. Kg2 Kf8 $18) 29... Kh8 (29... gxf6 $2 30. Qxc4+ Kf8 31. Qxa2 $18) 30. Qxc4 (30. Rxa3 $2 Rxa3 31. Qxc4 Ra1+ 32. Kg2 gxf6 $19) 30... Ra1+ 31. Kg2 gxf6 32. Qf7 $18) (28... Qxd5 $2 29. Bxc4 Kf8 30. Bxd5 $18) (28... Be6 $19 29. Nc7 Rxe2 (29... Qxc7 $2 30. Rxa3 Qb7 31. Qe3 $19) (29... Rxa2 $2 30. Be1 $19) 30. Qxa3 (30. Rxa3 $2 Rxf2+ 31. Kxf2 Qxc7 $19) 30... Rxf2+ (30... Qxc7 $2 31. Kxe2 Qd7 32. Qd6 $18) 31. Kxf2 Qxc7) 29. Nf6+ {[%emt 0:07:15]} (29. Rxa3 Rxf2+ (29... Qxd5 30. Kxe2 h6 31. Rg3 $11) 30. Kxf2 Qxd5 $19) (29. Qxc4 $17 Rxf2+ 30. Kxf2) 29... gxf6 $19 {[%emt 0:04:17]} 30. Qxc4+ {[%emt 0:00:23]} (30. Rxa3 $2 Rxf2+ (30... Rxa2 $2 31. Qxc4+ Kg7 32. Rxa5 $18) 31. Kxf2 Qd5 $19) 30... Kf8 $1 {[%emt 0:01:11]} 31. Qxe2 {[%emt 0:00:06] [#]} Nxd4 {[%emt 0:04:08]} ({Better is} 31... Be7 $1 $19 {[%cal Oc6e5][%mdl 512] Hoping for ...Nxe5!} 32. Kg1 (32. Qc2 Nb4) 32... Qd5) 32. Rxa3 $1 $11 {[%emt 0:02:04]} (32. Bxd4 $2 Bb5 33. Rd3 Qa6 $19) 32... Qxa3 {[%emt 0:00:35]} 33. Bxd4 {[%emt 0:00:15]} Qc1+ {[%emt 0:00:21]} 34. Kg2 {[%emt 0:00:22]} Qxf4 {[%emt 0:01:07]} 35. exf6 {[%emt 0:02:47]} Bc6+ {[%emt 0:04:35]} ({Worse is} 35... Qxd4 36. Qe7+ Kg8 37. Qg7#) 36. Kh3 {[%emt 0:00:33]} Qe4 {[%emt 0:01:19]} ({Not} 36... Qxd4 37. Qe7+ Kg8 38. Qg7#) 37. Qxe4 {[%emt 0:00:26]} fxe4 {[%emt 0:00:20]} 38. Bxa7 {[%emt 0:00:09]} Kf7 {[%emt 0:00:13]} 39. Bd4 $1 {[%emt 0:00:13]} e3 {[%emt 0:00:35]} 40. Kg3 {[%emt 0:00:04]} (40. Bxe3 Bd7+ 41. Kg3 Kxf6 $11) 40... e2 {[%emt 0:00:50]} 41. Kf2 {[%emt 0:00:02]} Bb5 {[%emt 0:00:14]} 42. Bc3 {[%emt 0:00:35]} Ke6 {[%emt 0:00:26]} 43. h5 {[%emt 0:01:23]} Kf7 {[%emt 0:01:02]} 44. h6 {[%emt 0:00:11]} Ke6 {[%emt 0:00:05]} 45. a3 {[%emt 0:00:05]} Kf7 {[%emt 0:00:13]} 46. Ke3 {[%emt 0:00:04]} e1=Q+ {[%emt 0:00:37]} 47. Bxe1 {[%emt 0:00:06]} Kxf6 {[%emt 0:00:07]} 48. Kd4 {[%emt 0:00:03]} Ke6 {[%emt 0:00:39]} 49. Kc5 {[%emt 0:05:42]} Ba4 {[%emt 0:00:06]} 50. Kb4 {[%emt 0:00:08]} Bd1 {[%emt 0:00:17]} 51. a4 {[%emt 0:00:09]} Kd6 {[%emt 0:00:14]} 52. Kb5 {[%emt 0:00:06]} Kc7 $1 {[%emt 0:00:11]} 53. a5 {[%emt 0:00:42]} Kb7 {[%emt 0:00:09] [#]} (53... Be2+ $14 54. Ka4 Bf1) 54. a6+ $1 $16 {[%emt 0:00:05]} Ka8 {[%emt 0:00:05]} 1/2-1/2